bitfinex/quotes_ETHUSD_20260131
["timestamp","ask_amount","ask_price","bid_price","bid_amount"]
[1769834659611,1.9979948,2700.6,2700.0,0.0011]
[1769834660704,1.9979948,2700.6,2700.2,0.0011]
[1769834660902,2.29036287,2700.5,2700.2,0.0011]
[1769834666195,2.29036287,2700.5,2700.0,0.0011]
[1769834670278,1.9974448,2700.4,2700.0,0.0011]
[1769834671804,1.9974448,2700.3,2700.0,0.0011]
[1769834672008,1.9974448,2700.3,2699.9,0.0011]
[1769834672208,0.92579563,2700.4,2699.9,0.0011]
[1769834672209,1.9968948,2700.1,2699.9,0.0011]
[1769834672983,1.9968948,2700.1,2699.4,0.0011]
[1769834673590,1.9968948,2700.1,2700.0,0.0011]
[1769834674185,1.9968948,2700.1,2699.1,5.49082171]
[1769834674186,1.9957948,2700.0,2698.3,0.19299202]
[1769834674513,1.9957948,2700.0,2697.9,0.92662602]
[1769834674514,1.9952448,2699.2,2697.9,0.92662409]
[1769834674728,1.9952448,2699.2,2697.9,1.01242729]
[1769834675211,1.9952448,2699.0,2697.9,1.01242729]
[1769834675412,2.00642152,2698.9,2697.4,0.92680342]
[1769834675712,2.00642152,2698.9,2697.4,0.92680801]
[1769834675902,1.9952448,2698.7,2697.4,0.92680801]
[1769834676611,1.9952448,2698.5,2697.2,0.92688714]
[1769834678417,1.9952448,2698.5,2697.4,5.49082171]
[1769834678784,1.9952448,2698.5,2697.5,0.92678405]
[1769834679017,1.9952448,2698.5,2697.6,1.0124742]
[1769834680385,1.9952448,2698.7,2697.6,1.0124742]
[1769834682214,1.9952448,2698.6,2697.6,1.93920007]
[1769834682520,1.9952448,2698.6,2697.6,0.92672587]
[1769834683420,1.9952448,2698.6,2697.5,0.92676017]
[1769834684228,1.9952448,2698.4,2697.3,0.92685277]
[1769834684420,1.9952448,2698.2,2697.4,1.01250856]
[1769834685425,1.9952448,2698.2,2697.6,0.0011]
[1769834698042,2.92163797,2698.7,2697.8,5.49192171]
[1769834698341,2.92163797,2698.7,2697.8,0.0011]
[1769834698342,1.9952448,2698.6,2697.8,0.0011]
[1769834700245,1.9952448,2698.4,2697.8,0.0011]
[1769834700451,1.9952448,2698.4,2697.6,0.0011]
[1769834700630,1.9941448,2698.2,2696.8,0.92699746]
[1769834700834,1.9935948,2698.0,2696.8,0.92699746]
[1769834701052,1.9935948,2698.0,2696.9,0.92698522]
[1769834701345,1.9935948,2698.0,2697.0,0.92695352]
[1769834701858,1.9935948,2698.0,2697.1,0.92691626]
[1769834702061,6.42843904,2698.5,2697.1,0.92691626]
[1769834702062,1.9935948,2697.8,2697.1,0.92691626]
[1769834702272,1.9935948,2698.2,2697.0,0.92695587]
[1769834702559,3.70603713,2698.4,2697.2,5.49082171]
[1769834702560,1.9935948,2698.4,2697.2,5.49082171]
[1769834703658,1.9935948,2698.4,2697.2,5.5032666]
[1769834704855,1.9935948,2698.4,2697.3,0.92685277]
[1769834705158,0.92647557,2698.4,2697.3,0.92685277]
[1769834705359,1.9935948,2698.3,2697.4,1.01375305]
[1769834708065,0.92650945,2698.3,2697.5,0.92678405]
[1769834708371,1.9935948,2698.2,2697.4,0.92679383]
[1769834708775,1.9935948,2698.2,2697.2,0.92686429]
[1769834708942,0.92650945,2698.3,2696.7,3.7081302]
[1769834708943,1.9935948,2698.0,2697.0,0.92694505]
[1769834710277,0.92664665,2697.9,2696.8,0.92702462]
[1769834710484,1.9935948,2697.8,2696.8,0.92702462]
[1769834712981,1.9935948,2697.7,2696.8,0.92702462]
[1769834714181,1.9945948,2698.1,2696.8,0.92702462]
[1769834714381,1.9945948,2698.1,2697.3,5.5032666]
[1769834715588,1.9935948,2698.0,2697.0,6.43022247]
[1769834719498,1.9935948,2697.9,2697.0,6.43022247]
[1769834719697,1.9935948,2697.9,2697.1,1.11518849]
[1769834721319,1.9935948,2697.9,2697.2,0.92688714]
[1769834721521,1.9935948,2697.9,2697.2,0.92798714]
[1769834727809,0.7,2697.7,2697.2,0.92798714]
[1769834727976,2.6935948,2697.7,2697.2,0.92798714]
[1769834728679,0.7,2697.7,2697.2,1.50318193]
[1769834730781,0.001,2698.1,2697.5,5.5032666]
[1769834731209,1.9935948,2698.5,2697.5,5.5032666]
[1769834731424,1.9935948,2699.1,2697.8,5.5032666]
[1769834732024,1.9935948,2698.9,2697.9,0.92664665]
[1769834733310,1.9935948,2698.9,2697.2,10.56401385]
[1769834733518,1.9935948,2698.9,2697.6,0.92672686]
[1769834733681,1.9935948,2698.7,2697.6,0.92672686]
[1769834734096,1.9935948,2698.5,2697.3,0.92795277]
[1769834735118,1.9935948,2698.5,2697.5,5.5032666]
[1769834736320,1.9935948,2698.5,2697.6,0.9267497]
[1769834742434,1.72090373,2698.4,2697.3,0.0011]
[1769834742619,1.72090373,2698.0,2697.3,0.0011]
[1769834742947,1.72090373,2697.9,2697.3,0.0011]
[1769834744744,1.72090373,2697.9,2697.0,0.0011]
[1769834745045,1.72090373,2697.6,2697.0,0.0011]
[1769834745249,1.72090373,2697.4,2696.5,0.0011]
[1769834746921,1.72090373,2697.4,2697.3,0.0011]
[1769834747116,1.98567525,2697.4,2696.5,0.0011]
[1769834747317,1.72090373,2697.4,2696.5,0.0011]
[1769834748242,2.42090373,2697.2,2696.5,0.0011]
[1769834749550,0.7,2697.2,2696.5,6.18100006]
[1769834750952,2.42090373,2697.2,2696.5,5.5043666]
[1769834751262,2.42090373,2697.2,2696.6,0.55043666]
[1769834751854,1.72090373,2697.1,2696.6,1.47752966]
[1769834753722,1.72090373,2697.1,2696.6,1.47752659]
[1769834758828,1.72090373,2697.1,2696.8,0.0011]
[1769834759323,0.7,2697.2,2696.8,0.68924021]
[1769834759527,1.72090373,2697.8,2696.9,6.19140681]
[1769834759741,1.72090373,2697.8,2697.0,0.61925068]
[1769834761038,1.72090373,2697.8,2697.0,1.54619386]
[1769834762966,1.72090373,2698.2,2697.3,0.68386755]
[1769834765769,1.72090373,2698.2,2697.4,0.92681841]
[1769834766648,1.72090373,2698.2,2697.5,0.67976001]
[1769834767443,1.72090373,2698.2,2697.4,0.92681841]
[1769834767643,1.72090373,2698.2,2697.5,0.46341562]
[1769834768481,0.001,2698.3,2697.6,0.9267497]
[1769834768862,1.83791837,2698.3,2697.6,0.9267497]
[1769834770476,1.83791837,2698.0,2697.6,0.9267497]
[1769834771450,1.83791837,2698.0,2697.6,1.06012129]
[1769834771770,1.83791837,2698.0,2697.1,1.07574006]
[1769834771979,1.83691837,2697.9,2697.0,0.9269303]
[1769834772151,1.83691837,2697.9,2697.1,0.92691392]
[1769834772882,1.83691837,2697.9,2697.2,0.92688515]
[1769834773077,1.83691837,2697.9,2697.2,1.39035544]
[1769834784174,0.001,2698.0,2697.5,0.66196541]
[1769834784376,1.83791837,2698.3,2697.5,0.66196541]
[1769834784577,1.83791837,2698.3,2697.4,5.50382338]
[1769834784804,0.001,2698.3,2697.5,0.66118993]
[1769834785102,0.001,2698.3,2697.6,1.27769126]
[1769834785583,1.83791837,2698.3,2697.6,1.27769126]
[1769834786095,1.83791837,2698.3,2697.6,0.61650133]
[1769834786400,1.83791837,2698.3,2697.6,1.54323353]
[1769834786974,1.83691837,2698.2,2697.6,0.61650133]
[1769834787178,1.83691837,2698.2,2697.2,0.46347029]
[1769834787400,1.83691837,2698.2,2697.1,0.92689657]
[1769834788305,1.83691837,2698.2,2697.2,0.92687986]
[1769834789093,1.83691837,2698.0,2696.9,0.92699024]
[1769834789601,1.83691837,2698.0,2696.9,1.58310564]
[1769834790602,1.83691837,2698.0,2696.9,0.92699024]
[1769834790812,1.83691837,2697.8,2696.9,2.00631054]
[1769834791015,1.83691837,2697.8,2696.9,1.0793203]
[1769834791217,1.83691837,2697.8,2696.8,0.92810767]
[1769834791218,1.83691837,2697.6,2696.8,0.0011]
[1769834791802,1.83691837,2697.6,2696.8,5.50492338]
[1769834793728,1.83691837,2697.6,2697.0,0.0011]
[1769834794614,0.92677448,2697.6,2697.0,0.0011]
[1769834794811,1.83691837,2697.5,2697.0,0.0011]
[1769834796717,0.92681749,2697.5,2697.0,0.0011]
[1769834796897,1.84764131,2697.4,2697.0,0.0011]
[1769834800844,1.67587991,2697.2,2696.8,0.0011]
[1769834803202,0.9269215,2697.1,2696.8,0.0011]
[1769834804729,2.60278637,2697.2,2696.8,0.0011]
[1769834805036,2.60276876,2697.2,2696.8,0.0011]
[1769834806033,2.60276876,2697.2,2697.0,0.0011]
[1769834814439,1.67587991,2697.2,2697.0,0.0011]
[1769834816761,2.60278534,2697.2,2696.8,0.0011]
[1769834817039,1.67587991,2697.1,2696.8,0.0011]
[1769834818265,0.001,2697.0,2696.8,0.0011]
[1769834821145,1.67687991,2697.0,2696.8,0.0011]
[1769834823047,0.001,2697.0,2696.8,0.0011]
[1769834826048,1.67687991,2697.0,2696.8,0.0011]
[1769834827148,1.67687991,2697.0,2696.5,0.0011]
[1769834827149,2.000363,2697.0,2696.5,0.0011]
[1769834828424,1.72087385,2696.8,2696.5,0.0011]
[1769834829622,1.72187385,2696.8,2696.5,0.0011]
[1769834830754,0.92705899,2696.7,2696.5,0.0011]
[1769834831156,1.72087385,2697.6,2696.5,0.63317792]
[1769834831450,2.64762355,2697.6,2696.7,6.14143612]
[1769834831864,1.72087385,2697.5,2696.7,6.14143612]
[1769834832451,1.72087385,2697.5,2696.8,0.63165434]
[1769834832655,0.001,2697.7,2697.1,0.63165434]
[1769834832859,0.001,2697.7,2697.2,1.24575559]
[1769834838862,0.001,2697.7,2697.2,0.61410125]
[1769834839462,1.72187385,2697.7,2697.2,0.61410125]
[1769834839653,1.72187385,2697.7,2696.8,0.92700521]
[1769834839853,1.72187385,2697.7,2696.8,1.55546927]
[1769834840034,2.64862193,2697.7,2696.9,0.62846406]
[1769834841344,0.001,2697.5,2696.9,0.62846406]
[1769834847069,0.001,2697.5,2696.9,1.55544231]
[1769834849369,0.001,2697.5,2697.0,0.52635216]
[1769834851374,1.72087385,2697.9,2697.1,1.55141704]
[1769834851671,1.72087385,2697.9,2697.1,0.92689986]
[1769834853072,0.001,2697.5,2697.1,0.92689986]
[1769834853381,1.72087385,2697.7,2697.1,0.92689986]
[1769834853679,1.72087385,2697.7,2697.2,0.64362581]
[1769834853851,0.92669486,2697.8,2697.2,0.64362581]
[1769834854862,2.6475418,2697.9,2697.2,1.57051155]
[1769834855065,2.6475418,2697.9,2697.2,0.64362581]
[1769834856181,1.72087385,2697.8,2697.2,0.64362581]
[1769834858482,1.82429915,2697.7,2697.2,0.64362581]
[1769834859585,0.9266949,2697.8,2697.2,0.64362581]
[1769834859769,0.92664665,2697.9,2697.3,0.21908957]
[1769834860076,2.65106967,2697.9,2697.3,0.21908957]
[1769834861354,0.92664665,2697.9,2697.3,0.21908957]
[1769834861650,1.72442302,2697.8,2697.3,0.21908957]
[1769834861850,2.65111591,2697.8,2697.3,0.21908957]
[1769834863588,2.65111591,2697.8,2697.2,0.64362581]
[1769834863589,1.72442302,2697.7,2697.2,0.64362581]
[1769834863811,1.72442302,2697.7,2696.6,0.92709193]
[1769834863989,1.72442302,2697.5,2696.5,3.70960651]
[1769834864161,1.72442302,2697.5,2696.7,5.5093582]
[1769834864985,1.72442302,2697.5,2696.8,0.0011]
[1769834868081,1.72442302,2697.4,2696.8,0.0011]
[1769834875806,0.001,2697.6,2697.0,6.12512808]
[1769834875996,0.001,2697.6,2697.1,0.61251281]
[1769834879193,1.72542302,2697.6,2697.1,0.61251281]
[1769834879593,1.72542302,2697.6,2697.0,0.0011]
[1769834879901,1.72442302,2697.4,2697.0,0.0011]
[1769834880914,1.72442302,2697.4,2696.8,0.0011]
[1769834886109,2.65219107,2697.6,2696.8,0.61564438]
[1769834886279,1.72442302,2697.5,2696.8,0.61564438]
[1769834886479,1.72442302,2697.5,2696.9,0.61250026]
[1769834887803,1.72442302,2697.5,2696.9,1.53948742]
[1769834888310,0.92776805,2697.6,2696.9,1.53948742]
[1769834888612,0.001,2697.6,2696.9,1.53948742]
[1769834888821,1.82452856,2697.5,2697.0,0.0011]
[1769834889315,2.75131543,2697.5,2697.0,0.0011]
[1769834889512,0.92678687,2697.5,2697.0,0.0011]
[1769834889715,1.82452856,2697.4,2697.0,0.0011]
[1769834895617,1.82452856,2697.3,2697.0,0.0011]
[1769834898928,1.82452856,2697.3,2696.5,0.0011]
[1769834898929,1.82452856,2697.2,2696.5,0.0011]
[1769834900232,1.82452856,2697.2,2697.0,0.0011]
[1769834902254,2.751434,2697.2,2697.0,0.0011]
[1769834907474,2.75145006,2697.1,2697.0,0.0011]
[1769834908277,1.82452856,2697.1,2697.0,0.0011]
[1769834908770,2.75145006,2697.1,2697.0,0.0011]
[1769834910463,1.82452856,2697.0,2696.3,0.0011]
[1769834911253,1.82452856,2696.7,2696.3,0.0011]
[1769834913386,2.52452856,2696.8,2696.3,0.0011]
[1769834913755,3.45155715,2696.8,2696.3,0.0011]
[1769834913948,4.16759663,2696.8,2696.3,0.0011]
[1769834915170,1.82452856,2696.7,2696.3,0.0011]
[1769834916678,0.7,2696.8,2696.3,0.0011]
[1769834917174,2.35836901,2696.8,2696.3,0.0011]
[1769834918780,1.81039851,2696.7,2696.3,0.0011]
[1769834920956,0.001,2697.0,2696.4,5.50525437]
[1769834921159,0.001,2697.0,2696.4,6.11800085]
[1769834921474,0.92691297,2697.2,2696.4,6.11800085]
[1769834921690,2.73731148,2697.2,2696.4,6.11800085]
[1769834922354,1.81039851,2697.1,2696.4,6.11800085]
[1769834922576,1.81039851,2697.1,2696.5,0.67625728]
[1769834923350,2.73732078,2697.1,2696.5,0.67625728]
[1769834923976,1.81139851,2697.3,2696.6,0.92709337]
[1769834924284,1.81139851,2697.3,2696.7,5.50525437]
[1769834924584,1.81039851,2697.2,2696.8,0.55052544]
[1769834925388,0.001,2697.3,2696.8,0.55052544]
[1769834925759,0.001,2697.3,2696.6,0.92708911]
[1769834926183,0.001,2697.3,2696.5,0.67735728]
[1769834926184,1.81139851,2697.3,2696.5,0.67735728]
[1769834926388,0.001,2696.9,2696.5,0.67735728]
[1769834926684,1.81139851,2696.9,2696.5,0.0011]
[1769834930108,0.001,2696.9,2696.5,0.0011]
[1769834937222,1.81139851,2696.9,2696.5,0.0011]
[1769834938678,1.81139851,2696.9,2696.7,0.0011]
[1769834939100,1.81039851,2696.8,2696.7,0.0011]
[1769834944011,0.001,2696.9,2696.7,0.0011]
[1769834947409,0.001,2697.3,2696.7,0.0011]
[1769834948518,0.001,2697.3,2696.7,0.61087304]
[1769834949588,0.001,2697.3,2696.7,1.53792362]
[1769834950887,0.001,2697.3,2696.9,0.0011]
[1769834963435,0.001,2697.1,2696.9,0.0011]
[1769834968535,0.001,2697.3,2696.9,0.0011]
[1769834968849,1.82179958,2697.3,2696.9,0.0011]
[1769834969428,1.82079958,2697.1,2696.7,0.0011]
[1769834970507,1.82079958,2696.9,2696.6,0.0011]
[1769834973554,1.82079958,2696.8,2696.6,0.0011]
[1769834975620,2.74782522,2696.8,2696.6,0.0011]
[1769834975820,1.82079958,2696.7,2696.6,0.0011]
[1769834977117,1.69620465,2696.9,2696.6,0.0011]
[1769834977829,1.69620465,2696.8,2696.6,0.0011]
[1769834979524,1.69620465,2696.8,2696.5,0.0011]
[1769834979729,1.73235125,2696.6,2696.3,0.0011]
[1769834987667,1.73235125,2696.6,2696.5,0.0011]
[1769834995770,1.73235125,2696.5,2695.6,0.0011]
[1769834996957,1.73235125,2696.5,2695.6,0.92853558]
[1769834997664,1.73235125,2696.5,2695.6,0.0011]
[1769834998669,1.73235125,2696.3,2695.6,0.0011]
[1769834998985,1.73235125,2696.2,2695.6,0.0011]
[1769834999959,1.73235125,2696.2,2695.9,0.0011]
[1769835000573,1.73235125,2696.1,2695.9,0.0011]
[1769835001673,1.73235125,2696.2,2695.9,0.0011]
[1769835002375,1.73235125,2696.0,2695.0,0.69069652]
[1769835005769,1.73235125,2695.8,2695.0,0.69069652]
[1769835009400,1.78303418,2695.6,2695.0,0.69069652]
[1769835011801,2.71047373,2695.6,2695.4,0.0011]
[1769835012099,3.3534708,2695.6,2695.4,0.0011]
[1769835012971,2.42603125,2695.6,2695.4,0.0011]
[1769835014188,0.64299707,2695.6,2695.4,0.0011]
[1769835014474,0.001,2695.6,2695.4,0.0011]
[1769835015760,0.92732166,2696.0,2695.4,0.0011]
[1769835016280,2.71035584,2696.0,2695.4,0.0011]
[1769835019780,0.92732166,2696.0,2695.4,0.0011]
[1769835019987,2.27327278,2695.9,2695.4,0.0011]
[1769835020190,0.92736849,2695.8,2695.4,0.0011]
[1769835023599,2.71040267,2695.8,2695.4,0.0011]
[1769835024375,2.71040267,2695.8,2695.6,0.0011]
[1769835026686,0.92736849,2695.8,2695.6,0.0011]
[1769835026873,1.4726442,2695.8,2695.6,0.0011]
[1769835033408,3.25567838,2695.8,2695.6,0.0011]
[1769835037217,1.4726442,2695.8,2695.6,0.0011]
[1769835037419,1.68830984,2695.7,2695.4,0.0011]
[1769835037727,1.68830984,2695.7,2695.2,0.0011]
[1769835037728,1.68830984,2695.5,2695.2,0.0011]
[1769835041751,1.2435327,2695.6,2695.2,0.0011]
[1769835042830,2.99968399,2695.6,2695.2,0.0011]
[1769835048967,2.99968399,2695.6,2695.4,0.0011]
[1769835049267,3.00068399,2695.6,2695.4,0.0011]
[1769835049565,0.67102966,2695.5,2695.4,0.0011]
[1769835051050,1.59850137,2695.5,2695.4,0.0011]
[1769835052075,0.67102966,2695.5,2695.4,0.0011]
[1769835053740,0.001,2695.6,2695.4,0.0011]
[1769835057291,0.92735057,2695.9,2695.4,0.0011]
[1769835060783,0.001,2695.7,2695.4,0.0011]
[1769835062347,0.777,2696.2,2695.4,0.0011]
[1769835062348,1.75615129,2696.3,2695.4,0.61196651]
[1769835062547,2.68337207,2696.3,2695.4,0.61196651]
[1769835063175,2.68337207,2696.3,2695.5,0.61084612]
[1769835064982,0.92718313,2696.4,2695.6,1.53818806]
[1769835065279,2.68312544,2697.0,2696.2,0.61078499]
[1769835065444,1.75615129,2696.9,2695.9,0.61078499]
[1769835065778,1.75615129,2696.9,2696.0,0.61247275]
[1769835065986,1.75615129,2696.9,2695.7,1.31599804]
[1769835066479,1.75615129,2696.9,2695.7,0.70521305]
[1769835066649,1.75615129,2696.9,2695.5,0.92745436]
[1769835066845,1.77001725,2696.7,2695.4,1.53930856]
[1769835067265,1.77001725,2696.5,2695.4,1.53930856]
[1769835068782,1.77001725,2696.5,2695.4,0.61180522]
[1769835068988,1.77001725,2696.3,2695.4,0.0011]
[1769835069553,0.92723091,2696.2,2695.4,0.0011]
[1769835069753,1.77001725,2696.1,2695.4,0.0011]
[1769835072710,1.77001725,2696.0,2695.4,0.0011]
[1769835073484,1.77001725,2696.0,2695.6,0.0011]
[1769835075793,1.77001725,2695.8,2695.6,0.0011]
[1769835079707,2.69740732,2695.8,2695.6,0.0011]
[1769835082607,1.77001725,2695.7,2695.6,0.0011]
[1769835085177,2.69742015,2695.7,2695.6,0.0011]
[1769835087710,3.33809607,2695.7,2695.6,0.0011]
[1769835088596,2.41069317,2695.7,2695.6,0.0011]
[1769835088799,0.92739199,2695.8,2695.6,0.0011]
[1769835101325,1.69421741,2695.8,2695.6,0.0011]
[1769835105619,2.62158783,2695.8,2695.6,0.0011]
[1769835106631,1.69421741,2696.0,2695.6,0.0011]
[1769835110829,1.69421741,2695.8,2695.6,0.0011]
[1769835113516,2.62160572,2695.8,2695.6,0.0011]
[1769835114255,0.92738831,2695.8,2695.6,0.0011]
[1769835116865,1.69421741,2695.9,2695.6,0.0011]
[1769835120267,0.001,2695.7,2695.6,0.0011]
[1769835135271,0.9284029,2695.7,2695.6,0.0011]
[1769835135849,1.78070382,2695.6,2695.2,0.0011]
[1769835136252,1.78070382,2695.6,2694.4,4.29004516]
[1769835136253,1.78070382,2695.6,2694.4,1.50658955]
[1769835136749,1.78070382,2695.6,2694.3,0.92898131]
[1769835136750,1.78070382,2695.5,2694.3,0.92898131]
[1769835137374,1.78070382,2695.3,2694.3,0.92898131]
[1769835137669,1.78070382,2695.1,2694.3,0.92898131]
[1769835140082,0.92759926,2695.2,2694.4,0.57326063]
[1769835142477,1.78070382,2695.2,2694.4,1.50110343]
[1769835143451,1.78070382,2695.2,2694.8,0.0011]
[1769835145446,2.70831118,2695.2,2694.8,0.0011]
[1769835145648,0.64184889,2695.1,2694.8,0.0011]
[1769835146176,2.42255271,2695.1,2694.8,0.0011]
[1769835147482,3.3501725,2695.1,2694.8,0.0011]
[1769835149084,1.78070382,2695.0,2694.8,0.0011]
[1769835154897,1.78070382,2695.3,2694.8,0.0011]
[1769835157602,2.67381457,2695.2,2694.8,0.0011]
[1769835158393,1.74623963,2695.1,2694.8,0.0011]
[1769835161097,2.67387089,2695.1,2694.8,0.0011]
[1769835161302,0.26738709,2695.0,2694.8,0.0011]
[1769835164507,1.89135977,2695.0,2694.8,0.0011]
[1769835165202,0.26738709,2695.0,2694.8,0.0011]
[1769835165405,0.92763126,2695.1,2694.8,0.0011]
[1769835165797,1.62397268,2695.1,2694.8,0.0011]
[1769835166788,1.62397268,2695.1,2695.0,0.0011]
[1769835166987,1.62497268,2695.1,2695.0,0.0011]
[1769835167187,1.62497268,2695.1,2694.8,0.0011]
[1769835167803,2.55258771,2695.1,2694.8,0.0011]
[1769835176509,1.62397268,2695.0,2694.8,0.0011]
[1769835176727,1.87923145,2695.0,2694.5,0.0011]
[1769835177883,1.62397268,2694.8,2694.5,0.0011]
[1769835179990,2.5517088,2694.8,2694.5,0.0011]
[1769835180392,1.62397268,2694.7,2694.5,0.0011]
[1769835180592,1.87914356,2694.7,2694.5,0.0011]
[1769835183024,2.80689301,2694.7,2694.5,0.0011]
[1769835184343,1.87914356,2694.7,2694.5,0.0011]
[1769835185427,2.80689202,2694.7,2694.5,0.0011]
[1769835186210,1.87914356,2694.7,2694.5,0.0011]
[1769835189736,2.80689224,2694.7,2694.5,0.0011]
[1769835190608,0.28068922,2694.6,2694.5,0.0011]
[1769835190808,1.95822859,2694.6,2694.5,0.0011]
[1769835193436,0.28068922,2694.6,2694.5,0.0011]
[1769835193621,1.18291956,2694.7,2694.5,0.0011]
[1769835199461,1.67753937,2694.6,2694.5,0.0011]
[1769835200153,1.67753937,2694.6,2694.3,0.0011]
[1769835200731,1.67753937,2694.5,2694.3,0.0011]
[1769835201228,1.67753937,2694.5,2694.1,0.0011]
[1769835203940,0.92785035,2694.4,2694.1,0.0011]
[1769835204142,3.23704675,2694.4,2694.1,0.0011]
[1769835204749,1.67753937,2694.3,2694.1,0.0011]
[1769835204951,1.67753937,2694.3,2693.5,0.0011]
[1769835206041,1.67753937,2694.1,2693.5,0.0011]
[1769835206242,1.67753937,2693.9,2693.5,0.0011]
[1769835206847,0.26054586,2694.0,2693.5,0.0011]
[1769835208360,1.67753937,2693.8,2693.5,0.0011]
[1769835209141,1.67753937,2693.8,2693.0,0.28667335]
[1769835209847,1.67753937,2693.8,2692.9,0.50847977]
[1769835210145,1.93809556,2693.7,2692.9,0.50847977]
[1769835210339,2.86621356,2693.7,2692.9,0.50847977]
[1769835212452,1.67753937,2693.6,2692.9,0.50847977]
[1769835213462,1.67753937,2693.6,2692.7,1.43463083]
[1769835213759,1.67753937,2693.6,2692.7,0.50621498]
[1769835214056,1.67753937,2693.6,2693.1,0.0011]
[1769835214355,2.08857136,2693.6,2693.1,0.0011]
[1769835214556,3.01672335,2693.6,2693.1,0.0011]
[1769835215564,2.08857136,2693.6,2693.1,0.0011]
[1769835216862,1.69806829,2693.5,2693.1,0.0011]
[1769835220787,0.92819484,2693.4,2693.1,0.0011]
[1769835226563,2.5450544,2693.4,2693.1,0.0011]
[1769835226938,2.5450544,2693.4,2693.3,0.0011]
[1769835227265,1.61685956,2693.3,2693.1,0.0011]
[1769835228779,2.54509294,2693.3,2693.1,0.0011]
[1769835229079,1.61685956,2693.2,2693.1,0.0011]
[1769835231171,0.92823338,2693.3,2693.1,0.0011]
[1769835231172,1.59508491,2693.4,2693.1,0.0011]
[1769835231684,0.48589157,2693.3,2693.1,0.0011]
[1769835231847,1.59508491,2693.4,2693.1,0.0011]
[1769835231848,0.9282174,2693.4,2693.1,0.0011]
[1769835232655,2.54507696,2693.4,2693.1,0.0011]
[1769835233848,1.61685956,2693.9,2693.1,0.49609305]
[1769835234053,3.71209027,2694.0,2693.1,0.49609305]
[1769835234054,0.92800613,2694.0,2693.1,0.49609305]
[1769835234353,2.54486569,2694.0,2693.1,0.49609305]
[1769835236275,2.54486569,2694.0,2693.2,1.42241292]
[1769835236584,1.61685956,2694.0,2693.2,1.9361976]
[1769835236792,1.61685956,2694.2,2693.3,0.49414915]
[1769835239067,2.54481198,2694.2,2693.4,0.92819484]
[1769835239260,0.001,2693.8,2693.4,0.92819484]
[1769835239460,0.001,2693.8,2693.4,1.49321682]
[1769835241487,0.001,2693.8,2693.4,0.56502198]
[1769835243478,1.61785956,2693.8,2693.1,0.0011]
[1769835243679,1.61685956,2693.4,2692.7,0.9284347]
[1769835243869,1.61685956,2693.4,2692.6,0.92844506]
[1769835244071,1.61685956,2693.4,2692.7,0.92843472]
[1769835245593,1.61685956,2693.4,2692.6,0.92847062]
[1769835245802,2.54505472,2693.4,2692.6,0.92847062]
[1769835245965,3.17081068,2693.4,2692.6,0.92847062]
[1769835246296,1.61685956,2693.3,2692.6,0.92847062]
[1769835246819,1.61685956,2693.3,2692.2,3.71440052]
[1769835246996,1.61685956,2693.3,2692.3,0.49090087]
[1769835247299,1.61685956,2693.3,2692.4,0.49055382]
[1769835250999,1.61685956,2693.3,2692.5,0.9285051]
[1769835251806,0.001,2693.1,2692.5,0.9285051]
[1769835254323,0.001,2693.1,2692.7,0.4880769]
[1769835254508,0.62575596,2693.4,2692.7,0.4880769]
[1769835254709,0.92813738,2693.6,2692.8,0.4870769]
[1769835255111,5.3811039,2693.8,2692.9,0.48784469]
[1769835255287,1.66884849,2693.8,2692.9,0.48784469]
[1769835256679,1.66884849,2693.8,2693.0,0.92833271]
[1769835256879,1.66884849,2693.8,2693.0,1.44129408]
[1769835260508,1.66884849,2693.8,2693.1,0.48510889]
[1769835263310,0.001,2693.6,2693.1,1.41339493]
[1769835263710,0.001,2693.6,2693.0,1.44127608]
[1769835264422,0.001,2693.6,2693.2,0.48386604]
[1769835264586,0.001,2693.8,2693.2,0.48386604]
[1769835266621,0.001,2693.8,2693.2,1.41210491]
[1769835267415,0.001,2693.8,2693.2,0.92823887]
[1769835268899,0.001,2693.8,2693.1,1.41000538]
[1769835269107,0.001,2693.8,2693.2,1.04504542]
[1769835269602,1.66884849,2693.8,2693.2,0.56362965]
[1769835271820,1.66784849,2693.7,2693.2,0.56362965]
[1769835272002,1.66784849,2693.7,2693.1,0.92829824]
[1769835275824,0.001,2693.6,2693.0,0.92833271]
[1769835276926,1.6754622,2693.6,2693.0,0.92833271]
[1769835277126,1.6754622,2693.6,2693.1,0.51242708]
[1769835281226,1.6754622,2693.6,2693.1,1.44071309]
[1769835282433,0.001,2693.6,2693.2,0.4775807]
[1769835282596,0.001,2693.8,2693.2,0.4765807]
[1769835282800,0.001,2693.8,2693.3,0.19182938]
[1769835283001,1.73098043,2693.8,2693.3,0.19182938]
[1769835287448,0.001,2693.6,2693.3,0.19182938]
[1769835297748,0.001,2693.6,2693.2,0.0011]
[1769835300072,0.001,2693.6,2693.5,0.0011]
[1769835302170,1.73098043,2693.6,2693.5,0.0011]
[1769835302474,1.73098043,2693.6,2693.3,0.0011]
[1769835308376,1.6463275,2693.8,2693.3,0.0011]
[1769835308880,0.001,2693.8,2693.3,0.0011]
[1769835312788,0.001,2693.8,2693.5,0.0011]
[1769835312965,0.001,2693.6,2693.5,0.0011]
[1769835313168,0.001,2693.8,2693.5,0.0011]
[1769835315206,1.6453275,2693.9,2693.5,0.0011]
[1769835316363,1.6453275,2694.2,2693.5,0.0011]
[1769835316764,1.6453275,2694.2,2693.6,0.55220134]
[1769835317581,1.6453275,2694.2,2693.7,0.92809147]
[1769835318118,0.001,2694.3,2693.7,0.92809147]
[1769835318275,1.6463275,2694.3,2693.7,0.92809147]
[1769835319814,0.001,2694.3,2693.7,0.92809147]
[1769835319977,0.001,2694.3,2693.8,0.54989458]
[1769835322119,0.001,2694.3,2693.8,1.4779269]
[1769835323121,1.6453275,2694.5,2693.8,1.4779269]
[1769835323300,1.6453275,2695.0,2694.4,0.01483377]
[1769835323710,1.6453275,2695.0,2694.6,0.01483377]
[1769835323895,1.58052036,2695.0,2694.6,0.01483377]
[1769835324206,1.55772253,2695.0,2694.7,0.92774705]
[1769835324596,0.001,2695.1,2694.7,0.92774705]
[1769835324993,0.001,2695.1,2694.7,1.39311728]
[1769835325926,3.71065537,2695.7,2694.7,1.75039664]
[1769835325927,1.6453275,2695.4,2694.7,1.75039664]
[1769835326220,1.64032877,2695.4,2694.7,1.75039664]
[1769835326392,1.63052036,2695.4,2694.7,1.39311728]
[1769835326593,1.63052036,2695.4,2694.8,0.51190726]
[1769835328418,1.63052036,2695.4,2694.8,1.43959955]
[1769835333815,1.61901044,2695.4,2694.8,1.43959955]